fUSD/lending_fUSD_20240625
["ID","MTS","AMOUNT","RATE_DAILY","PERIOD"]
[330404248,1719349842965,-500.0,0.00019178,2]
[330404250,1719349842975,-500.0,0.00019178,2]
[330404251,1719349842985,-500.0,0.00019178,2]
[330404252,1719349842994,-500.0,0.00019178,2]
[330404253,1719349843004,-519.63,0.00019178,2]
[330404254,1719349843014,-987.67,0.00019178,2]
[330404255,1719349843024,-500.0,0.00019178,2]
[330404256,1719349843033,-550.4,0.00019178,2]
[330404257,1719349843043,-500.0,0.00019178,2]
[330404258,1719349843053,-500.0,0.00019178,2]
[330404259,1719349843063,-655.18,0.00019178,2]
[330404262,1719349843073,-500.0,0.00019178,2]
[330404266,1719349843087,-500.0,0.00019178,2]
[330404269,1719349843097,-500.0,0.00019178,2]
[330404272,1719349843106,-500.0,0.00019178,2]
[330404275,1719349843115,-2334.1,0.00019178,2]
[330404279,1719349843126,-1646.06,0.00019178,2]
[330404282,1719349843137,-984.7,0.00019178,2]
[330404285,1719349843147,-1493.11,0.00019178,2]
[330404288,1719349843157,-500.0,0.00019178,2]
[330404291,1719349843170,-500.0,0.00019178,2]
[330404293,1719349843180,-527.21,0.00019178,2]
[330404295,1719349843190,-1383.09,0.00019178,2]
[330404297,1719349843200,-500.0,0.00019178,2]
[330404298,1719349843210,-500.0,0.00019178,2]
[330404299,1719349843220,-500.0,0.00019178,2]
[330404300,1719349843230,-611.68,0.00019178,2]
[330404301,1719349843240,-500.0,0.00019178,2]
[330404302,1719349843250,-706.58,0.00019178,2]
[330404303,1719349843260,-500.0,0.00019178,2]
[330404304,1719349843270,-946.63,0.00019178,2]
[330404305,1719349843280,-1334.83,0.00019178,2]
[330404306,1719349843289,-500.0,0.00019178,2]
[330404307,1719349843299,-1006.37,0.00019178,2]
[330404308,1719349843309,-654.29,0.00019178,2]
[330404309,1719349843319,-623.15,0.00019178,2]
[330404310,1719349843329,-500.0,0.00019178,2]
[330404311,1719349843339,-801.27,0.00019178,2]
[330404312,1719349843349,-1797.7,0.00019178,2]
[330404313,1719349843359,-500.0,0.00019178,2]
[330404314,1719349843368,-500.0,0.00019178,2]
[330404315,1719349843379,-500.0,0.00019178,2]
[330404316,1719349843389,-500.0,0.00019178,2]
[330404317,1719349843399,-1024.83,0.00019178,2]
[330404318,1719349843409,-636.32,0.00019178,2]
[330404319,1719349843421,-417.02831998,0.00019178,2]
[330404320,1719349843431,-500.0,0.00019178,2]
[330404321,1719349843440,-1018.49,0.00019178,2]
[330404322,1719349843450,-559.82,0.00019178,2]
[330404323,1719349843459,-1274.76,0.00019178,2]
[330404324,1719349843473,-527.07,0.00019178,2]
[330404325,1719349843484,-500.0,0.00019178,2]
[330404326,1719349843494,-565.69,0.00019178,2]
[330404327,1719349843503,-500.0,0.00019178,2]
[330404328,1719349843513,-1832.58,0.00019178,2]
[330404329,1719349843522,-500.0,0.00019178,2]
[330404330,1719349843532,-852.11,0.00019178,2]
[330404331,1719349843541,-533.98,0.00019178,2]
[330404332,1719349843558,-594.53,0.00019178,2]
[330404333,1719349843568,-500.0,0.00019178,2]
[330404334,1719349843577,-500.0,0.00019178,2]
[330404335,1719349843587,-1861.66,0.00019178,2]
[330404336,1719349843596,-504.98,0.00019178,2]
[330404337,1719349843605,-500.0,0.00019178,2]
[330404338,1719349843615,-5840.27,0.00019178,2]
[330404339,1719349843624,-850.7,0.00019178,2]
[330404352,1719349843862,-774.48,0.00019178,2]
[330404355,1719349843884,-500.0,0.00019178,2]
[330404357,1719349843894,-655.41,0.00019178,2]
[330404359,1719349843903,-986.46,0.00019178,2]
[330404361,1719349843913,-1672.87,0.00019178,2]
[330404363,1719349843922,-500.0,0.00019178,2]
[330404365,1719349843932,-500.0,0.00019178,2]
[330404366,1719349843942,-500.0,0.00019178,2]
[330404367,1719349843952,-500.0,0.00019178,2]
[330404368,1719349843961,-500.0,0.00019178,2]
[330404369,1719349843970,-669.51,0.00019178,2]
[330404370,1719349843980,-8473.21,0.00019178,2]
[330404371,1719349843989,-500.0,0.00019178,2]
[330404372,1719349843999,-500.0,0.00019178,2]
[330404373,1719349844009,-950.63,0.00019178,2]
[330404374,1719349844019,-500.0,0.00019178,2]
[330404375,1719349844028,-500.0,0.00019178,2]
[330404376,1719349844038,-1120.06,0.00019178,2]
[330404377,1719349844048,-500.0,0.00019178,2]
[330404379,1719349844058,-1008.94,0.00019178,2]
[330404380,1719349844067,-500.0,0.00019178,2]
[330404381,1719349844076,-500.0,0.00019178,2]
[330404382,1719349844087,-584.25495029,0.00019178,2]
[330404383,1719349844100,-605.15,0.00019178,2]
[330404384,1719349844109,-1358.64,0.00019178,2]
[330404385,1719349844118,-866.64,0.00019178,2]
[330404386,1719349844128,-555.3,0.00019178,2]
[330404387,1719349844139,-831.43,0.00019178,2]
[330404388,1719349844149,-500.0,0.00019178,2]
[330404389,1719349844159,-500.0,0.00019178,2]
[330404390,1719349844171,-500.0,0.00019178,2]
[330404391,1719349844180,-1631.04,0.00019178,2]
[330404392,1719349844191,-733.36,0.00019178,2]
[330404393,1719349844202,-704.93,0.00019178,2]
[330404394,1719349844212,-500.0,0.00019178,2]
[330404395,1719349844223,-500.0,0.00019178,2]
[330404396,1719349844234,-561.55,0.00019178,2]
[330404397,1719349844244,-500.0,0.00019178,2]
[330404398,1719349844254,-733.21,0.00019178,2]
[330404399,1719349844264,-500.0,0.00019178,2]
[330404400,1719349844273,-500.0,0.00019178,2]
[330404401,1719349844282,-500.0,0.00019178,2]
[330404402,1719349844291,-1403.49,0.00019178,2]
[330404403,1719349844301,-500.0,0.00019178,2]
[330404404,1719349844311,-500.0,0.00019178,2]
[330404405,1719349844322,-500.0,0.00019178,2]
[330404406,1719349844332,-830.98,0.00019178,2]
[330404407,1719349844342,-500.0,0.00019178,2]
[330404408,1719349844352,-858.29,0.00019178,2]
[330404409,1719349844362,-500.0,0.00019178,2]
[330404410,1719349844371,-500.0,0.00019178,2]
[330404411,1719349844381,-500.0,0.00019178,2]
[330404412,1719349844391,-500.0,0.00019178,2]
[330404413,1719349844401,-500.0,0.00019178,2]
[330404414,1719349844411,-1906.43,0.00019178,2]
[330404415,1719349844421,-500.0,0.00019178,2]
[330404416,1719349844430,-928.46,0.00019178,2]
[330404417,1719349844440,-500.0,0.00019178,2]
[330404418,1719349844451,-978.47,0.00019178,2]
[330404419,1719349844461,-500.0,0.00019178,2]
[330404420,1719349844470,-500.0,0.00019178,2]
[330404421,1719349844480,-614.04,0.00019178,2]
[330404422,1719349844490,-500.0,0.00019178,2]
[330404423,1719349844500,-2026.41,0.00019178,2]
[330404424,1719349844509,-3951.4,0.00019178,2]
[330404425,1719349844519,-2053.86,0.00019178,2]
[330404426,1719349844530,-500.0,0.00019178,2]
[330404427,1719349844540,-500.0,0.00019178,2]
[330404428,1719349844549,-500.0,0.00019178,2]
[330404429,1719349844558,-500.0,0.00019178,2]
[330404430,1719349844568,-500.0,0.00019178,2]
[330404431,1719349844578,-873.92,0.00019178,2]
[330404432,1719349844588,-993.64,0.00019178,2]
[330404433,1719349844598,-500.0,0.00019178,2]
[330404434,1719349844607,-500.0,0.00019178,2]
[330404435,1719349844617,-567.53,0.00019178,2]
[330404436,1719349844627,-500.0,0.00019178,2]
[330404437,1719349844637,-500.0,0.00019178,2]
[330404438,1719349844647,-1334.9,0.00019178,2]
[330404439,1719349844659,-500.0,0.00019178,2]
[330404440,1719349844669,-500.0,0.00019178,2]
[330404441,1719349844678,-500.0,0.00019178,2]
[330404442,1719349844688,-500.0,0.00019178,2]
[330404443,1719349844697,-283.69860475,0.00019178,2]
[330404444,1719349844818,-739.28139525,0.00019178,2]
[330404445,1719349844828,-700.33,0.00019178,2]
[330404446,1719349844837,-394.74248984,0.00019178,2]
[330404447,1719349844861,-105.25751016,0.00019178,2]
[330404448,1719349844871,-495.70305051,0.00019178,2]
[330404449,1719349845606,-2491.01847886,0.00019077,2]
[330404450,1719349845616,-307.97977309,0.0001915,2]
[330404451,1719349845626,-352.16694949,0.00019178,2]
[330404452,1719349845637,-500.0,0.00019178,2]
[330404453,1719349845647,-500.0,0.00019178,2]
[330404454,1719349845658,-500.0,0.00019178,2]
[330404455,1719349845669,-11084.57,0.00019178,2]
[330404456,1719349845679,-544.38,0.00019178,2]
[330404457,1719349845688,-500.0,0.00019178,2]
[330404458,1719349845697,-11468.17,0.00019178,2]
[330404459,1719349845707,-500.0,0.00019178,2]
[330404460,1719349845716,-984.14,0.00019178,2]
[330404461,1719349845725,-520.92,0.00019178,2]
[330404462,1719349845735,-500.0,0.00019178,2]
[330404463,1719349845744,-653.19,0.00019178,2]
[330404464,1719349845754,-749.02,0.00019178,2]
[330404465,1719349845764,-500.0,0.00019178,2]
[330404466,1719349845774,-500.0,0.00019178,2]
[330404467,1719349845784,-1386.32,0.00019178,2]
[330404468,1719349845794,-7510.52,0.00019178,2]
[330404469,1719349845805,-1218.53,0.00019178,2]
[330404471,1719349845814,-500.0,0.00019178,2]
[330404473,1719349845824,-1916.13,0.00019178,2]
[330404475,1719349845834,-1695.35,0.00019178,2]
[330404476,1719349845844,-687.19,0.00019178,2]
[330404478,1719349845853,-500.0,0.00019178,2]
[330404480,1719349845863,-500.0,0.00019178,2]
[330404481,1719349845873,-7775.79,0.00019178,2]
[330404482,1719349845882,-518.52,0.00019178,2]
[330404483,1719349845891,-500.0,0.00019178,2]
[330404484,1719349845901,-500.0,0.00019178,2]
[330404485,1719349845911,-1116.24,0.00019178,2]
[330404486,1719349845922,-500.0,0.00019178,2]
[330404487,1719349845931,-500.0,0.00019178,2]
[330404488,1719349845940,-394.08280494,0.00019178,2]
[330404489,1719349845950,-500.0,0.00019178,2]
[330404490,1719349845961,-607.71,0.00019178,2]
[330404492,1719349845970,-1399.46,0.00019178,2]
[330404494,1719349845980,-500.0,0.00019178,2]
[330404496,1719349845990,-214.70752709,0.00019178,2]
[330404510,1719349846113,-285.29247291,0.00019178,2]
[330404512,1719349846123,-757.83410872,0.00019178,2]
[330404610,1719349846875,-53.90589128,0.00019178,2]
[330404613,1719349846885,-500.0,0.00019178,2]
[330404614,1719349846894,-500.0,0.00019178,2]
[330404616,1719349846903,-613.2831269,0.00019178,2]
[330404618,1719349846914,-500.0,0.00019178,2]
[330404620,1719349846926,-500.0,0.00019178,2]
[330404622,1719349846936,-1024.68,0.00019178,2]
[330404624,1719349846945,-2516.7,0.00019178,2]
[330404626,1719349846957,-625.69,0.00019178,2]
[330404628,1719349846966,-500.0,0.00019178,2]
[330404630,1719349846975,-2355.34,0.00019178,2]
[330404632,1719349846984,-500.0,0.00019178,2]
[330404634,1719349846993,-1182.13,0.00019178,2]
[330404636,1719349847002,-500.0,0.00019178,2]
[330404638,1719349847012,-1114.59,0.00019178,2]
[330404640,1719349847021,-1092.55,0.00019178,2]
[330404642,1719349847031,-500.0,0.00019178,2]
[330404643,1719349847041,-1561.57,0.00019178,2]
[330404645,1719349847050,-500.0,0.00019178,2]
[330404647,1719349847059,-500.0,0.00019178,2]
[330404649,1719349847068,-1646.03,0.00019178,2]
[330404651,1719349847078,-794.58,0.00019178,2]
[330404653,1719349847089,-500.0,0.00019178,2]
[330404655,1719349847100,-500.0,0.00019178,2]
[330404657,1719349847109,-748.34,0.00019178,2]
[330404659,1719349847118,-500.0,0.00019178,2]
[330404661,1719349847127,-770.44,0.00019178,2]
[330404663,1719349847137,-521.18,0.00019178,2]
[330404665,1719349847147,-1142.0,0.00019178,2]
[330404667,1719349847156,-500.0,0.00019178,2]
[330404669,1719349847168,-500.0,0.00019178,2]
[330404671,1719349847177,-2571.03,0.00019178,2]
[330404673,1719349847188,-870.8,0.00019178,2]
[330404675,1719349847197,-500.0,0.00019178,2]
[330404677,1719349847206,-25410.14,0.00019178,2]
[330404679,1719349847217,-500.0,0.00019178,2]
[330404681,1719349847226,-1078.18,0.00019178,2]
[330404683,1719349847235,-514.06,0.00019178,2]
[330404685,1719349847243,-1430.85,0.00019178,2]
[330404687,1719349847252,-500.0,0.00019178,2]
[330404689,1719349847262,-500.0,0.00019178,2]
[330404691,1719349847271,-500.0,0.00019178,2]
[330404693,1719349847280,-361.84401174,0.00019178,2]
[330404696,1719349847301,-1290.64598826,0.00019178,2]
[330404698,1719349847310,-500.0,0.00019178,2]
[330404699,1719349847320,-178.21869966,0.00019178,2]
[330404700,1719349847328,-500.0,0.00019178,2]
[330404701,1719349847338,-500.0,0.00019178,2]
[330404702,1719349847346,-613.41,0.00019178,2]
[330404703,1719349847355,-723.01,0.00019178,2]
[330404704,1719349847364,-1891.65,0.00019178,2]
[330404705,1719349847373,-500.0,0.00019178,2]
[330404706,1719349847381,-500.0,0.00019178,2]
[330404707,1719349847390,-500.0,0.00019178,2]
[330404708,1719349847399,-526.87,0.00019178,2]
[330404709,1719349847408,-777.56,0.00019178,2]
[330404710,1719349847419,-500.0,0.00019178,2]
[330404711,1719349847428,-500.0,0.00019178,2]
[330404712,1719349847437,-1102.39,0.00019178,2]
[330404713,1719349847446,-1514.95,0.00019178,2]
[330404714,1719349847454,-500.0,0.00019178,2]
[330404715,1719349847463,-500.0,0.00019178,2]
[330404716,1719349847471,-500.0,0.00019178,2]
[330404717,1719349847480,-500.0,0.00019178,2]
[330404719,1719349847489,-1317.08,0.00019178,2]
[330404721,1719349847498,-18587.15,0.00019178,2]
[330404723,1719349847506,-500.0,0.00019178,2]
[330404725,1719349847516,-5801.82,0.00019178,2]
[330404727,1719349847524,-657.28,0.00019178,2]
[330404729,1719349847534,-528.19,0.00019178,2]
[330404731,1719349847543,-512.39,0.00019178,2]
[330404733,1719349847552,-500.0,0.00019178,2]
[330404735,1719349847560,-938.27,0.00019178,2]
[330404737,1719349847569,-500.0,0.00019178,2]
[330404739,1719349847578,-500.0,0.00019178,2]
[330404741,1719349847587,-2207.51,0.00019178,2]
[330404743,1719349847596,-500.0,0.00019178,2]
[330404745,1719349847605,-1303.9,0.00019178,2]
[330404747,1719349847614,-1113.9,0.00019178,2]
[330404749,1719349847623,-500.0,0.00019178,2]
[330404751,1719349847632,-500.0,0.00019178,2]
[330404753,1719349847640,-500.0,0.00019178,2]
[330404755,1719349847650,-344.40471218,0.00019178,2]
[330404888,1719349962684,155.0,0.00025,60]
[330404889,1719350417247,-679.76,0.00016833,2]
[330404890,1719350554331,645.77,0.00016475,2]
[330404905,1719351032325,-250.0,0.00018191,2]
[330404906,1719351032334,-17754.1,0.00018224,2]
[330404907,1719351032344,-1000.0,0.00018269,2]
[330404908,1719351032354,-264.3264858,0.00018271,2]
[330404909,1719351032363,-250.0,0.00018272,2]
[330404910,1719351032373,-161.05154285,0.00018339,2]
[330404911,1719351032382,-500.0,0.00018406,2]
[330404912,1719351032393,-172.84,0.00018468,2]
[330404913,1719351032402,-645.77,0.00018739,2]
[330404914,1719351032411,-499.99,0.00018825,2]
[330404915,1719351032421,-150.0,0.00018876,2]
[330404916,1719351032439,-526.63,0.00018877,2]
[330404917,1719351032448,-422.79,0.00018877,2]
[330404918,1719351032457,-201.51938811,0.00019076,2]
[330404919,1719351032466,-155.0,0.00019077,2]
[330404920,1719351032477,-930.51605628,0.00019078,2]
[330404921,1719351032486,-1494.46422698,0.00019078,2]
[330404922,1719351032495,-10000.0,0.00019078,2]
[330404923,1719351032505,-209.00646061,0.00019168,2]
[330404924,1719351032516,-318.04969319,0.00019169,2]
[330404925,1719351032525,-307.97977309,0.00019177,2]
[330404926,1719351032535,-500.0,0.00019178,2]
[330404927,1719351032543,-574.15080674,0.00019178,2]
[330404928,1719351032555,-322.719495,0.00019178,2]
[330404929,1719351032575,-1631.77969826,0.00019178,2]
[330404930,1719351032585,-500.0,0.00019178,2]
[330404931,1719351032594,-500.0,0.00019178,2]
[330404932,1719351032605,-500.0,0.00019178,2]
[330404933,1719351032614,-500.0,0.00019178,2]
[330404934,1719351032623,-500.0,0.00019178,2]
[330404935,1719351032633,-500.0,0.00019178,2]
[330404936,1719351032643,-670.94,0.00019178,2]
[330404937,1719351032652,-500.0,0.00019178,2]
[330404938,1719351032661,-500.0,0.00019178,2]
[330404939,1719351032669,-500.0,0.00019178,2]
[330404940,1719351032679,-500.0,0.00019178,2]
[330404941,1719351032688,-500.0,0.00019178,2]
[330404942,1719351032698,-500.0,0.00019178,2]
[330404943,1719351032707,-500.0,0.00019178,2]
[330404944,1719351032717,-500.0,0.00019178,2]
[330404945,1719351032726,-500.0,0.00019178,2]
[330404946,1719351032735,-500.0,0.00019178,2]
[330404947,1719351032745,-500.0,0.00019178,2]
[330404948,1719351032754,-521.68,0.00019178,2]
[330404949,1719351032763,-500.0,0.00019178,2]
[330404950,1719351032773,-500.0,0.00019178,2]
[330404951,1719351032782,-500.0,0.00019178,2]
[330404952,1719351032792,-500.0,0.00019178,2]
[330404953,1719351032802,-500.0,0.00019178,2]
[330404954,1719351032812,-549.94252841,0.00019178,2]
[330404955,1719351032821,-500.0,0.00019178,2]
[330404956,1719351032831,-500.0,0.00019178,2]
[330404957,1719351032840,-500.0,0.00019178,2]
[330404958,1719351032850,-608.32,0.00019178,2]
[330404959,1719351032859,-500.0,0.00019178,2]
[330404960,1719351032869,-500.0,0.00019178,2]
[330404961,1719351032878,-500.0,0.00019178,2]
[330404962,1719351032887,-500.0,0.00019178,2]
[330404963,1719351032899,-500.0,0.00019178,2]
[330404964,1719351032908,-500.0,0.00019178,2]
[330404965,1719351032917,-500.0,0.00019178,2]
[330404966,1719351032927,-529.9,0.00019178,2]
[330404967,1719351032937,-500.0,0.00019178,2]
[330404968,1719351032947,-681.27,0.00019178,2]
[330404969,1719351032956,-500.0,0.00019178,2]
[330404970,1719351032966,-500.0,0.00019178,2]
[330404971,1719351032975,-500.0,0.00019178,2]
[330404972,1719351032984,-500.0,0.00019178,2]
[330404973,1719351032995,-2294.94,0.00019178,2]
[330404974,1719351033004,-500.0,0.00019178,2]
[330404975,1719351033014,-500.0,0.00019178,2]
[330404976,1719351033023,-500.0,0.00019178,2]
[330404977,1719351033032,-500.0,0.00019178,2]
[330404978,1719351033042,-500.0,0.00019178,2]
[330404979,1719351033051,-500.0,0.00019178,2]
[330404980,1719351033061,-546.21,0.00019178,2]
[330404981,1719351033070,-500.0,0.00019178,2]
[330404982,1719351033079,-500.0,0.00019178,2]
[330404983,1719351033089,-500.0,0.00019178,2]
[330404984,1719351033098,-500.0,0.00019178,2]
[330404985,1719351033108,-500.0,0.00019178,2]
[330404986,1719351033117,-500.0,0.00019178,2]
[330404987,1719351033127,-500.0,0.00019178,2]
[330404988,1719351033136,-501.04,0.00019178,2]
[330404989,1719351033146,-500.0,0.00019178,2]
[330404990,1719351033156,-404.99281674,0.00019178,2]
[330404991,1719351033165,-500.0,0.00019178,2]
[330404992,1719351033174,-500.0,0.00019178,2]
[330404993,1719351033183,-500.0,0.00019178,2]
[330404994,1719351033194,-500.0,0.00019178,2]
[330404995,1719351033203,-500.0,0.00019178,2]
[330404996,1719351033213,-500.0,0.00019178,2]
[330404997,1719351033222,-500.0,0.00019178,2]
[330404998,1719351033233,-500.0,0.00019178,2]
[330404999,1719351033242,-500.0,0.00019178,2]
[330405000,1719351033252,-500.0,0.00019178,2]
[330405001,1719351033262,-500.0,0.00019178,2]
[330405002,1719351033272,-500.0,0.00019178,2]
[330405003,1719351033281,-500.0,0.00019178,2]
[330405004,1719351033291,-500.0,0.00019178,2]
[330405005,1719351033302,-500.0,0.00019178,2]
[330405006,1719351033312,-500.0,0.00019178,2]
[330405007,1719351033322,-538.43,0.00019178,2]
[330405008,1719351033332,-799.35,0.00019178,2]
[330405009,1719351033341,-500.0,0.00019178,2]
[330405010,1719351033351,-500.0,0.00019178,2]
[330405011,1719351033360,-500.0,0.00019178,2]
[330405012,1719351033370,-500.0,0.00019178,2]
[330405013,1719351033379,-527.46,0.00019178,2]
[330405014,1719351033387,-500.0,0.00019178,2]
[330405015,1719351033398,-500.0,0.00019178,2]
[330405016,1719351033407,-500.0,0.00019178,2]
[330405017,1719351033416,-500.0,0.00019178,2]
[330405018,1719351033425,-500.0,0.00019178,2]
[330405019,1719351033439,-500.0,0.00019178,2]
[330405020,1719351033448,-500.0,0.00019178,2]
[330405021,1719351033458,-627.03,0.00019178,2]
[330405022,1719351033467,-500.0,0.00019178,2]
[330405023,1719351033478,-500.0,0.00019178,2]
[330405024,1719351033487,-500.0,0.00019178,2]
[330405025,1719351033496,-500.0,0.00019178,2]
[330405026,1719351033506,-536.54,0.00019178,2]
[330405027,1719351033517,-500.0,0.00019178,2]
[330405028,1719351033527,-500.0,0.00019178,2]
[330405029,1719351033536,-500.0,0.00019178,2]
[330405030,1719351033545,-542.12,0.00019178,2]
[330405031,1719351033554,-500.0,0.00019178,2]
[330405032,1719351033563,-597.19,0.00019178,2]
[330405033,1719351033572,-1722.79,0.00019178,2]
[330405034,1719351033581,-505.11,0.00019178,2]
[330405035,1719351033591,-500.0,0.00019178,2]
[330405036,1719351033600,-677.14,0.00019178,2]
[330405037,1719351033609,-500.0,0.00019178,2]
[330405038,1719351033619,-227.99334674,0.00019178,2]
[330405039,1719351033628,-1756.22,0.00019178,2]
[330405040,1719351033639,-500.0,0.00019178,2]
[330405041,1719351033649,-641.62,0.00019178,2]
[330405042,1719351033659,-500.0,0.00019178,2]
[330405043,1719351033668,-500.0,0.00019178,2]
[330405044,1719351033678,-500.0,0.00019178,2]
[330405045,1719351033689,-500.0,0.00019178,2]
[330405046,1719351033698,-830.53,0.00019178,2]
[330405047,1719351033707,-500.0,0.00019178,2]
[330405048,1719351033717,-1065.38,0.00019178,2]
[330405049,1719351033726,-500.0,0.00019178,2]
[330405050,1719351033736,-532.16,0.00019178,2]
[330405051,1719351033745,-500.0,0.00019178,2]
[330405052,1719351033754,-579.94,0.00019178,2]
[330405053,1719351033763,-500.0,0.00019178,2]
[330405054,1719351033773,-500.0,0.00019178,2]
[330405055,1719351033783,-500.0,0.00019178,2]
[330405056,1719351033792,-1101.81,0.00019178,2]
[330405057,1719351033801,-1286.99,0.00019178,2]
[330405058,1719351033810,-500.0,0.00019178,2]
[330405059,1719351033820,-472.59238746,0.00019178,2]
[330405060,1719351033829,-500.0,0.00019178,2]
[330405061,1719351033838,-500.0,0.00019178,2]
[330405062,1719351033848,-500.0,0.00019178,2]
[330405063,1719351033857,-500.0,0.00019178,2]
[330405064,1719351033866,-500.0,0.00019178,2]
[330405065,1719351033875,-500.0,0.00019178,2]
[330405066,1719351033885,-500.0,0.00019178,2]
[330405067,1719351033895,-1072.81,0.00019178,2]
[330405068,1719351033905,-500.0,0.00019178,2]
[330405069,1719351033915,-500.0,0.00019178,2]
[330405070,1719351033925,-500.0,0.00019178,2]
[330405071,1719351033934,-500.0,0.00019178,2]
[330405072,1719351033944,-588.45,0.00019178,2]
[330405073,1719351033954,-500.0,0.00019178,2]
[330405074,1719351034229,-500.0,0.00019178,2]
[330405075,1719351034239,-1073.39,0.00019178,2]
[330405076,1719351034250,-2715.38,0.00019178,2]
[330405077,1719351034260,-500.0,0.00019178,2]
[330405078,1719351034269,-500.0,0.00019178,2]
[330405079,1719351034279,-500.0,0.00019178,2]
[330405080,1719351034289,-500.0,0.00019178,2]
[330405081,1719351034299,-500.0,0.00019178,2]
[330405082,1719351034308,-500.0,0.00019178,2]
[330405083,1719351034319,-500.0,0.00019178,2]
[330405084,1719351034328,-500.0,0.00019178,2]
[330405085,1719351034338,-500.0,0.00019178,2]
[330405086,1719351034347,-666.29,0.00019178,2]
[330405087,1719351034357,-500.0,0.00019178,2]
[330405088,1719351034367,-1942.78,0.00019178,2]
[330405089,1719351034376,-500.0,0.00019178,2]
[330405090,1719351034385,-500.0,0.00019178,2]
[330405091,1719351034396,-871.74,0.00019178,2]
[330405092,1719351034406,-1279.28,0.00019178,2]
[330405093,1719351034415,-738.52,0.00019178,2]
[330405094,1719351034425,-500.0,0.00019178,2]
[330405095,1719351034442,-717.81,0.00019178,2]
[330405096,1719351034451,-500.0,0.00019178,2]
[330405097,1719351034461,-893.51,0.00019178,2]
[330405098,1719351034470,-642.97,0.00019178,2]
[330405099,1719351034482,-500.0,0.00019178,2]
[330405100,1719351034491,-838.91,0.00019178,2]
[330405101,1719351034500,-500.0,0.00019178,2]
[330405102,1719351034512,-500.0,0.00019178,2]
[330405103,1719351034521,-500.0,0.00019178,2]
[330405104,1719351034531,-500.0,0.00019178,2]
[330405105,1719351034540,-1021.58,0.00019178,2]
[330405106,1719351034551,-500.0,0.00019178,2]
[330405107,1719351034561,-2414.87,0.00019178,2]
[330405108,1719351034572,-500.0,0.00019178,2]
[330405109,1719351034581,-500.0,0.00019178,2]
[330405110,1719351034591,-500.0,0.00019178,2]
[330405111,1719351034600,-819.72,0.00019178,2]
[330405112,1719351034609,-500.0,0.00019178,2]
[330405113,1719351034618,-500.0,0.00019178,2]
[330405114,1719351034628,-500.0,0.00019178,2]
[330405115,1719351034637,-897.99,0.00019178,2]
[330405116,1719351034647,-500.0,0.00019178,2]
[330405117,1719351034656,-500.0,0.00019178,2]
[330405118,1719351034665,-500.0,0.00019178,2]
[330405119,1719351034674,-658.56,0.00019178,2]
[330405120,1719351034684,-765.02,0.00019178,2]
[330405121,1719351034693,-823.03,0.00019178,2]